[Event "Titled Tuesday Blitz April 25 Late 2023"]
[White "Rosen, Eric"]
[Black "Silva, Miguel Antonio Neto"]
[WhiteFideId "2032562"]
[BlackFideId "1911929"]
[WhiteElo "2331"]
[BlackElo "2223"]
[Result "1/2-1/2"]
[Round "04"]
[TimeControl "180+2"]
[Date "2023.04.25"]
[WhiteClock "0:00:06"]
[BlackClock "0:00:12"]

1. e4 {[%clk 0:03:00]}  c5 {[%clk 0:02:57]} 2. Nf3 {[%clk 0:03:00]}  d6 {[%clk 0:02:55]} 3. Nc3 {[%clk 0:02:59]}  Nf6 {[%clk 0:02:48]} 4. e5 {[%clk 0:02:59]}  dxe5 {[%clk 0:02:47]} 5. Nxe5 {[%clk 0:03:00]}  Nbd7 {[%clk 0:02:47]} 6. d4 {[%clk 0:03:00]}  e6 {[%clk 0:02:41]} 7. Bf4 {[%clk 0:02:56]}  Be7 {[%clk 0:02:35]} 8. dxc5 {[%clk 0:02:52]}  O-O {[%clk 0:02:27]} 9. c6 {[%clk 0:02:30]}  Nxe5 {[%clk 0:02:26]} 10. Qxd8 {[%clk 0:02:26]}  Rxd8 {[%clk 0:02:19]} 11. c7 {[%clk 0:02:02]}  Rd7 {[%clk 0:01:22]} 12. Bxe5 {[%clk 0:02:01]}  a6 {[%clk 0:01:20]} 13. Be2 {[%clk 0:01:50]}  Ne8 {[%clk 0:01:09]} 14. Rd1 {[%clk 0:01:44]}  f6 {[%clk 0:01:08]} 15. Bg3 {[%clk 0:01:34]}  Bb4 {[%clk 0:01:02]} 16. O-O {[%clk 0:01:15]}  Ba5 {[%clk 0:00:54]} 17. Bc4 {[%clk 0:01:05]}  Kf7 {[%clk 0:00:51]} 18. Rfe1 {[%clk 0:00:55]}  Rxd1 {[%clk 0:00:50]} 19. Rxd1 {[%clk 0:00:53]}  Bxc7 {[%clk 0:00:46]} 20. Bxc7 {[%clk 0:00:46]}  Nxc7 {[%clk 0:00:46]} 21. Ne4 {[%clk 0:00:46]}  Ke7 {[%clk 0:00:42]} 22. Bb3 {[%clk 0:00:31]}  Bd7 {[%clk 0:00:36]} 23. f4 {[%clk 0:00:27]}  Bc6 {[%clk 0:00:36]} 24. Nc5 {[%clk 0:00:27]}  b6 {[%clk 0:00:24]} 25. Nxe6 {[%clk 0:00:27]}  Nxe6 {[%clk 0:00:25]} 26. Re1 {[%clk 0:00:28]}  Rd8 {[%clk 0:00:19]} 27. Rxe6+ {[%clk 0:00:25]}  Kd7 {[%clk 0:00:19]} 28. Re2 {[%clk 0:00:24]}  Kc7 {[%clk 0:00:19]} 29. Re7+ {[%clk 0:00:21]}  Kb8 {[%clk 0:00:18]} 30. Rxg7 {[%clk 0:00:12]}  Rd2 {[%clk 0:00:17]} 31. h4 {[%clk 0:00:07]}  a5 {[%clk 0:00:17]} 32. a4 {[%clk 0:00:06]}  b5 {[%clk 0:00:17]} 33. axb5 {[%clk 0:00:05]}  Bxb5 {[%clk 0:00:17]} 34. Rxh7 {[%clk 0:00:02]}  a4 {[%clk 0:00:17]} 35. Be6 {[%clk 0:00:02]}  Rxc2 {[%clk 0:00:17]} 36. Bd5 {[%clk 0:00:02]}  Rxb2 {[%clk 0:00:17]} 37. h5 {[%clk 0:00:02]}  Bd3 {[%clk 0:00:15]} 38. Rh8+ {[%clk 0:00:02]}  Kc7 {[%clk 0:00:15]} 39. Ra8 {[%clk 0:00:03]}  Kd6 {[%clk 0:00:15]} 40. Ra5 {[%clk 0:00:02]}  Rb5 {[%clk 0:00:14]} 41. Rxb5 {[%clk 0:00:02]}  Bxb5 {[%clk 0:00:15]} 42. Ba2 {[%clk 0:00:03]}  Bd3 {[%clk 0:00:14]} 43. g4 {[%clk 0:00:02]}  Ke7 {[%clk 0:00:14]} 44. Kf2 {[%clk 0:00:02]}  Bc2 {[%clk 0:00:15]} 45. Ke3 {[%clk 0:00:03]}  Bd1 {[%clk 0:00:11]} 46. g5 {[%clk 0:00:02]}  Bxh5 {[%clk 0:00:11]} 47. gxf6+ {[%clk 0:00:02]}  Kxf6 {[%clk 0:00:11]} 48. Kd4 {[%clk 0:00:03]}  Bf7 {[%clk 0:00:10]} 49. Bxf7 {[%clk 0:00:02]}  Kxf7 {[%clk 0:00:10]} 50. Kc3 {[%clk 0:00:03]}  Kf6 {[%clk 0:00:11]} 51. Kb2 {[%clk 0:00:04]}  Kf5 {[%clk 0:00:12]} 52. Ka3 {[%clk 0:00:05]}  Kxf4 {[%clk 0:00:12]} 53. Kxa4 {[%clk 0:00:06]} 1/2-1/2


[Site "https://www.chess.com"]

[Event "Titled Tuesday Blitz April 25 Late 2023"]
[White "Aggelis, Nikolaos"]
[Black "Indjic, Aleksandar"]
[WhiteFideId "4213220"]
[BlackFideId "911925"]
[WhiteElo "2189"]
[BlackElo "2614"]
[Result "0-1"]
[Round "04"]
[TimeControl "180+2"]
[Date "2023.04.25"]
[WhiteClock "0:00:00"]
[BlackClock "0:01:19"]

1. c4 {[%clk 0:02:58]}  e5 {[%clk 0:02:55]} 2. g3 {[%clk 0:02:57]}  Nf6 {[%clk 0:02:55]} 3. Bg2 {[%clk 0:02:56]}  d5 {[%clk 0:02:55]} 4. cxd5 {[%clk 0:02:55]}  Nxd5 {[%clk 0:02:56]} 5. Nc3 {[%clk 0:02:53]}  Nb6 {[%clk 0:02:54]} 6. Nf3 {[%clk 0:02:52]}  Nc6 {[%clk 0:02:53]} 7. O-O {[%clk 0:02:53]}  Be6 {[%clk 0:02:52]} 8. e3 {[%clk 0:02:38]}  Bc4 {[%clk 0:02:36]} 9. Re1 {[%clk 0:02:34]}  Bd3 {[%clk 0:02:35]} 10. Bf1 {[%clk 0:02:27]}  f6 {[%clk 0:02:33]} 11. a3 {[%clk 0:02:04]}  a5 {[%clk 0:02:30]} 12. Qb3 {[%clk 0:01:53]}  Bxf1 {[%clk 0:02:26]} 13. Rxf1 {[%clk 0:01:51]}  Qd3 {[%clk 0:02:24]} 14. Qb5 {[%clk 0:01:27]}  O-O-O {[%clk 0:02:21]} 15. Ne1 {[%clk 0:01:22]}  Qxb5 {[%clk 0:02:20]} 16. Nxb5 {[%clk 0:01:22]}  a4 {[%clk 0:02:20]} 17. d4 {[%clk 0:01:14]}  Na5 {[%clk 0:02:10]} 18. dxe5 {[%clk 0:00:58]}  Nb3 {[%clk 0:02:09]} 19. Rb1 {[%clk 0:00:56]}  fxe5 {[%clk 0:02:09]} 20. e4 {[%clk 0:00:53]}  Be7 {[%clk 0:02:04]} 21. Be3 {[%clk 0:00:51]}  Nc4 {[%clk 0:02:03]} 22. Nf3 {[%clk 0:00:37]}  c6 {[%clk 0:02:02]} 23. Nc3 {[%clk 0:00:36]}  b5 {[%clk 0:02:02]} 24. Rfd1 {[%clk 0:00:33]}  Rxd1+ {[%clk 0:02:00]} 25. Nxd1 {[%clk 0:00:32]}  Rd8 {[%clk 0:01:56]} 26. Kf1 {[%clk 0:00:22]}  Bxa3 {[%clk 0:01:56]} 27. bxa3 {[%clk 0:00:19]}  Nxa3 {[%clk 0:01:55]} 28. Rxb3 {[%clk 0:00:18]}  axb3 {[%clk 0:01:46]} 29. Ke2 {[%clk 0:00:18]}  Rxd1 {[%clk 0:01:22]} 30. Kxd1 {[%clk 0:00:18]}  b2 {[%clk 0:01:23]} 31. Nd2 {[%clk 0:00:15]}  b1=Q+ {[%clk 0:01:19]} 32. Nxb1 {[%clk 0:00:11]}  Nxb1 {[%clk 0:01:20]} 33. Kc2 {[%clk 0:00:03]}  Na3+ {[%clk 0:01:19]} 34. Kb3 {[%clk 0:00:00]}  Nc4 {[%clk 0:01:19]} 0-1


[Site "https://www.chess.com"]

[Event "Titled Tuesday Blitz April 25 Late 2023"]
[White "Pakleza, Zbigniew"]
[Black "Meunier-Pion, Jean"]
[WhiteFideId "1119290"]
[BlackFideId "20685327"]
[WhiteElo "2410"]
[BlackElo "2124"]
[Result "1/2-1/2"]
[Round "04"]
[TimeControl "180+2"]
[Date "2023.04.25"]
[WhiteClock "0:00:09"]
[BlackClock "0:00:07"]

1. d4 {[%clk 0:03:00]}  d5 {[%clk 0:02:57]} 2. Bf4 {[%clk 0:03:00]}  c5 {[%clk 0:02:57]} 3. c3 {[%clk 0:03:00]}  cxd4 {[%clk 0:02:52]} 4. cxd4 {[%clk 0:03:01]}  Nc6 {[%clk 0:02:51]} 5. e3 {[%clk 0:03:01]}  Nf6 {[%clk 0:02:51]} 6. Nc3 {[%clk 0:03:01]}  Bf5 {[%clk 0:02:44]} 7. Qb3 {[%clk 0:03:01]}  Na5 {[%clk 0:02:43]} 8. Qa4+ {[%clk 0:03:01]}  Bd7 {[%clk 0:02:43]} 9. Qc2 {[%clk 0:03:01]}  Rc8 {[%clk 0:02:40]} 10. Bd3 {[%clk 0:03:01]}  e6 {[%clk 0:02:39]} 11. Nf3 {[%clk 0:03:01]}  Bb4 {[%clk 0:02:32]} 12. O-O {[%clk 0:03:00]}  O-O {[%clk 0:02:27]} 13. Rfc1 {[%clk 0:03:00]}  Bxc3 {[%clk 0:02:25]} 14. bxc3 {[%clk 0:03:01]}  Nc4 {[%clk 0:02:23]} 15. Ne5 {[%clk 0:02:56]}  Bb5 {[%clk 0:02:14]} 16. Bg5 {[%clk 0:02:44]}  h6 {[%clk 0:02:12]} 17. Bh4 {[%clk 0:02:43]}  Nxe5 {[%clk 0:01:24]} 18. dxe5 {[%clk 0:02:13]}  Bxd3 {[%clk 0:01:24]} 19. Qxd3 {[%clk 0:02:10]}  g5 {[%clk 0:01:25]} 20. exf6 {[%clk 0:01:59]}  gxh4 {[%clk 0:01:24]} 21. Qd4 {[%clk 0:01:55]}  Rc4 {[%clk 0:01:21]} 22. Qxa7 {[%clk 0:01:55]}  Qxf6 {[%clk 0:01:20]} 23. Qxb7 {[%clk 0:01:49]}  Kh7 {[%clk 0:00:58]} 24. Qb2 {[%clk 0:01:12]}  h3 {[%clk 0:00:48]} 25. Qe2 {[%clk 0:01:00]}  hxg2 {[%clk 0:00:26]} 26. Rd1 {[%clk 0:00:42]}  Rxc3 {[%clk 0:00:15]} 27. a4 {[%clk 0:00:40]}  Rfc8 {[%clk 0:00:13]} 28. Ra2 {[%clk 0:00:28]}  Qf5 {[%clk 0:00:09]} 29. a5 {[%clk 0:00:19]}  Rc2 {[%clk 0:00:10]} 30. Rxc2 {[%clk 0:00:15]}  Rxc2 {[%clk 0:00:11]} 31. Qd3 {[%clk 0:00:12]}  Qxd3 {[%clk 0:00:10]} 32. Rxd3 {[%clk 0:00:13]}  Ra2 {[%clk 0:00:10]} 33. Kxg2 {[%clk 0:00:09]}  Rxa5 {[%clk 0:00:11]} 34. Rb3 {[%clk 0:00:10]}  Ra4 {[%clk 0:00:11]} 35. Rb7 {[%clk 0:00:10]}  Kg6 {[%clk 0:00:11]} 36. Kg3 {[%clk 0:00:10]}  Ra2 {[%clk 0:00:10]} 37. Rb8 {[%clk 0:00:09]}  Kg7 {[%clk 0:00:09]} 38. Rb7 {[%clk 0:00:10]}  Ra1 {[%clk 0:00:09]} 39. Kg2 {[%clk 0:00:10]}  Ra2 {[%clk 0:00:10]} 40. Rc7 {[%clk 0:00:10]}  Ra4 {[%clk 0:00:10]} 41. Rb7 {[%clk 0:00:11]}  Rc4 {[%clk 0:00:11]} 42. Ra7 {[%clk 0:00:11]}  Rc5 {[%clk 0:00:10]} 43. Rb7 {[%clk 0:00:11]}  Kf6 {[%clk 0:00:10]} 44. Ra7 {[%clk 0:00:11]}  Kf5 {[%clk 0:00:08]} 45. Rxf7+ {[%clk 0:00:11]}  Kg6 {[%clk 0:00:08]} 46. Ra7 {[%clk 0:00:11]}  Rc6 {[%clk 0:00:09]} 47. Kf3 {[%clk 0:00:11]}  Kf6 {[%clk 0:00:09]} 48. Rh7 {[%clk 0:00:10]}  Kg6 {[%clk 0:00:10]} 49. Rh8 {[%clk 0:00:11]}  Kg7 {[%clk 0:00:10]} 50. Ra8 {[%clk 0:00:12]}  Kf6 {[%clk 0:00:10]} 51. Kg4 {[%clk 0:00:11]}  Kg6 {[%clk 0:00:09]} 52. Rg8+ {[%clk 0:00:10]}  Kf7 {[%clk 0:00:10]} 53. Rb8 {[%clk 0:00:11]}  Kg6 {[%clk 0:00:10]} 54. h4 {[%clk 0:00:12]}  h5+ {[%clk 0:00:10]} 55. Kg3 {[%clk 0:00:12]}  Rc4 {[%clk 0:00:10]} 56. Rg8+ {[%clk 0:00:12]}  Kf7 {[%clk 0:00:09]} 57. Rg5 {[%clk 0:00:11]}  d4 {[%clk 0:00:06]} 58. exd4 {[%clk 0:00:08]}  Rxd4 {[%clk 0:00:07]} 59. Rxh5 {[%clk 0:00:08]}  Kg6 {[%clk 0:00:07]} 60. Rg5+ {[%clk 0:00:07]}  Kf6 {[%clk 0:00:07]} 61. Ra5 {[%clk 0:00:07]}  Kg6 {[%clk 0:00:07]} 62. Ra6 {[%clk 0:00:06]}  Kf6 {[%clk 0:00:07]} 63. Ra5 {[%clk 0:00:07]}  Kg6 {[%clk 0:00:08]} 64. f3 {[%clk 0:00:08]}  Kf6 {[%clk 0:00:08]} 65. Ra8 {[%clk 0:00:08]}  Kg6 {[%clk 0:00:09]} 66. Rg8+ {[%clk 0:00:09]}  Kf7 {[%clk 0:00:09]} 67. Rg5 {[%clk 0:00:10]}  Kf6 {[%clk 0:00:09]} 68. Rg4 {[%clk 0:00:10]}  Rd5 {[%clk 0:00:09]} 69. Rf4+ {[%clk 0:00:10]}  Kg6 {[%clk 0:00:09]} 70. Re4 {[%clk 0:00:10]}  Kf6 {[%clk 0:00:09]} 71. Kg4 {[%clk 0:00:11]}  Rc5 {[%clk 0:00:08]} 72. Rf4+ {[%clk 0:00:10]}  Kg6 {[%clk 0:00:08]} 73. Re4 {[%clk 0:00:11]}  Kf6 {[%clk 0:00:09]} 74. h5 {[%clk 0:00:10]}  Rg5+ {[%clk 0:00:09]} 75. Kh4 {[%clk 0:00:11]}  Rf5 {[%clk 0:00:09]} 76. Re3 {[%clk 0:00:10]}  e5 {[%clk 0:00:08]} 77. Rb3 {[%clk 0:00:09]}  Rf4+ {[%clk 0:00:08]} 78. Kg3 {[%clk 0:00:08]}  Rf5 {[%clk 0:00:09]} 79. Kg4 {[%clk 0:00:07]}  Rf4+ {[%clk 0:00:07]} 80. Kg3 {[%clk 0:00:08]}  Kg5 {[%clk 0:00:06]} 81. Rb5 {[%clk 0:00:04]}  Rf5 {[%clk 0:00:06]} 82. h6 {[%clk 0:00:04]}  Kxh6 {[%clk 0:00:07]} 83. Kg4 {[%clk 0:00:05]}  Rf4+ {[%clk 0:00:07]} 84. Kg3 {[%clk 0:00:06]}  Rf5 {[%clk 0:00:07]} 85. Kg4 {[%clk 0:00:06]}  Rg5+ {[%clk 0:00:08]} 86. Kh4 {[%clk 0:00:06]}  Kg6 {[%clk 0:00:08]} 87. Rb8 {[%clk 0:00:05]}  Rh5+ {[%clk 0:00:07]} 88. Kg3 {[%clk 0:00:05]}  Rg5+ {[%clk 0:00:07]} 89. Kf2 {[%clk 0:00:06]}  Rf5 {[%clk 0:00:08]} 90. Rg8+ {[%clk 0:00:06]}  Kf6 {[%clk 0:00:08]} 91. Rg4 {[%clk 0:00:06]}  Ke6 {[%clk 0:00:07]} 92. Ra4 {[%clk 0:00:06]}  Kf6 {[%clk 0:00:08]} 93. Ke3 {[%clk 0:00:06]}  Kg5 {[%clk 0:00:07]} 94. Rg4+ {[%clk 0:00:06]}  Kf6 {[%clk 0:00:07]} 95. Rc4 {[%clk 0:00:07]}  Ke6 {[%clk 0:00:08]} 96. Rc6+ {[%clk 0:00:06]}  Kd5 {[%clk 0:00:08]} 97. Ra6 {[%clk 0:00:07]}  Rf4 {[%clk 0:00:07]} 98. Ra5+ {[%clk 0:00:07]}  Ke6 {[%clk 0:00:07]} 99. Ra6+ {[%clk 0:00:08]}  Kd5 {[%clk 0:00:08]} 100. Ra5+ {[%clk 0:00:08]}  Ke6 {[%clk 0:00:09]} 101. Ra8 {[%clk 0:00:09]}  Kd5 {[%clk 0:00:09]} 102. Re8 {[%clk 0:00:08]}  Rd4 {[%clk 0:00:08]} 103. Rd8+ {[%clk 0:00:08]}  Kc4 {[%clk 0:00:07]} 104. Re8 {[%clk 0:00:08]}  Kd5 {[%clk 0:00:08]} 105. Ra8 {[%clk 0:00:06]}  Rb4 {[%clk 0:00:07]} 106. Ra5+ {[%clk 0:00:06]}  Ke6 {[%clk 0:00:08]} 107. Kf2 {[%clk 0:00:07]}  Kf5 {[%clk 0:00:08]} 108. Ra8 {[%clk 0:00:06]}  Rb3 {[%clk 0:00:07]} 109. Kg3 {[%clk 0:00:06]}  Rb4 {[%clk 0:00:06]} 110. Rf8+ {[%clk 0:00:06]}  Ke6 {[%clk 0:00:06]} 111. Re8+ {[%clk 0:00:07]}  Kf5 {[%clk 0:00:07]} 112. Rf8+ {[%clk 0:00:07]}  Ke6 {[%clk 0:00:07]} 113. Rh8 {[%clk 0:00:07]}  Kf5 {[%clk 0:00:08]} 114. Rh5+ {[%clk 0:00:07]}  Ke6 {[%clk 0:00:08]} 115. Rh4 {[%clk 0:00:08]}  Rxh4 {[%clk 0:00:07]} 116. Kxh4 {[%clk 0:00:08]}  Kf5 {[%clk 0:00:05]} 117. Kg3 {[%clk 0:00:09]}  Kg5 {[%clk 0:00:06]} 118. Kf2 {[%clk 0:00:08]}  Kf4 {[%clk 0:00:07]} 119. Ke2 {[%clk 0:00:09]}  e4 {[%clk 0:00:06]} 120. fxe4 {[%clk 0:00:09]}  Kxe4 {[%clk 0:00:07]} 1/2-1/2


[Site "https://www.chess.com"]

[Event "Titled Tuesday Blitz April 25 Late 2023"]
[White "Karas, Marek"]
[Black "Javakhadze, Zurab"]
[WhiteFideId "14928558"]
[BlackFideId "13603647"]
[WhiteElo "2233"]
[BlackElo "2381"]
[Result "0-1"]
[Round "04"]
[TimeControl "180+2"]
[Date "2023.04.25"]
[WhiteClock "0:01:24"]
[BlackClock "0:01:26"]

1. d4 {[%clk 0:02:59]}  Nf6 {[%clk 0:03:00]} 2. Nf3 {[%clk 0:02:59]}  e6 {[%clk 0:03:00]} 3. c4 {[%clk 0:02:59]}  b6 {[%clk 0:03:00]} 4. a3 {[%clk 0:02:59]}  Bb7 {[%clk 0:03:00]} 5. Nc3 {[%clk 0:02:59]}  d5 {[%clk 0:03:01]} 6. cxd5 {[%clk 0:03:00]}  Nxd5 {[%clk 0:02:59]} 7. Qc2 {[%clk 0:03:00]}  Be7 {[%clk 0:02:58]} 8. e4 {[%clk 0:03:01]}  Nxc3 {[%clk 0:02:58]} 9. bxc3 {[%clk 0:03:01]}  O-O {[%clk 0:02:59]} 10. Bd3 {[%clk 0:03:02]}  c5 {[%clk 0:02:59]} 11. O-O {[%clk 0:03:01]}  Nc6 {[%clk 0:02:58]} 12. Be3 {[%clk 0:02:57]}  cxd4 {[%clk 0:02:55]} 13. cxd4 {[%clk 0:02:57]}  Rc8 {[%clk 0:02:56]} 14. Qe2 {[%clk 0:02:56]}  Na5 {[%clk 0:02:53]} 15. Rad1 {[%clk 0:02:48]}  Qd7 {[%clk 0:02:44]} 16. Bb5 {[%clk 0:02:42]}  Bc6 {[%clk 0:02:43]} 17. a4 {[%clk 0:02:40]}  Bxb5 {[%clk 0:02:42]} 18. Qxb5 {[%clk 0:02:33]}  Qb7 {[%clk 0:02:34]} 19. d5 {[%clk 0:02:31]}  exd5 {[%clk 0:02:34]} 20. exd5 {[%clk 0:02:27]}  Rfd8 {[%clk 0:02:35]} 21. h3 {[%clk 0:02:21]}  Nc4 {[%clk 0:02:20]} 22. Rfe1 {[%clk 0:02:10]}  Nxe3 {[%clk 0:02:17]} 23. Rxe3 {[%clk 0:02:11]}  Bc5 {[%clk 0:02:15]} 24. Red3 {[%clk 0:02:06]}  Bd6 {[%clk 0:02:02]} 25. Qb3 {[%clk 0:01:58]}  h6 {[%clk 0:01:58]} 26. Nd4 {[%clk 0:01:57]}  Re8 {[%clk 0:01:50]} 27. Nc6 {[%clk 0:01:54]}  Re2 {[%clk 0:01:49]} 28. R3d2 {[%clk 0:01:50]}  Rce8 {[%clk 0:01:47]} 29. Rxe2 {[%clk 0:01:47]}  Rxe2 {[%clk 0:01:48]} 30. Qd3 {[%clk 0:01:36]}  Re8 {[%clk 0:01:47]} 31. Rb1 {[%clk 0:01:32]}  Qd7 {[%clk 0:01:43]} 32. a5 {[%clk 0:01:28]}  bxa5 {[%clk 0:01:41]} 33. Nxa5 {[%clk 0:01:28]}  Qa4 {[%clk 0:01:30]} 34. Qb5 {[%clk 0:01:23]}  Qxb5 {[%clk 0:01:27]} 35. Rxb5 {[%clk 0:01:24]}  Re1# {[%clk 0:01:26]} 0-1


[Site "https://www.chess.com"]

[Event "Titled Tuesday Blitz April 25 Late 2023"]
[White "Koziorowicz, Michal"]
[Black "Flynn, Jacob"]
[WhiteFideId "21809194"]
[BlackFideId "2509393"]
[WhiteElo "2255"]
[BlackElo "2053"]
[Result "0-1"]
[Round "04"]
[TimeControl "180+2"]
[Date "2023.04.25"]
[WhiteClock "0:00:06"]
[BlackClock "0:00:05"]

1. e4 {[%clk 0:03:00]}  e5 {[%clk 0:02:59]} 2. Nf3 {[%clk 0:02:59]}  Nc6 {[%clk 0:02:59]} 3. Nc3 {[%clk 0:02:59]}  Nf6 {[%clk 0:03:00]} 4. d4 {[%clk 0:02:59]}  exd4 {[%clk 0:03:00]} 5. Nd5 {[%clk 0:03:00]}  Nb4 {[%clk 0:02:59]} 6. Bc4 {[%clk 0:02:48]}  Nbxd5 {[%clk 0:02:58]} 7. exd5 {[%clk 0:02:48]}  Bb4+ {[%clk 0:02:55]} 8. Kf1 {[%clk 0:02:49]}  O-O {[%clk 0:02:54]} 9. Qxd4 {[%clk 0:02:49]}  d6 {[%clk 0:02:50]} 10. Bg5 {[%clk 0:02:47]}  h6 {[%clk 0:02:43]} 11. h4 {[%clk 0:02:46]}  Bf5 {[%clk 0:02:40]} 12. Bd3 {[%clk 0:02:28]}  Bc5 {[%clk 0:02:34]} 13. Qc4 {[%clk 0:02:24]}  Bg6 {[%clk 0:02:22]} 14. Bd2 {[%clk 0:01:55]}  Qd7 {[%clk 0:02:06]} 15. Rh3 {[%clk 0:01:50]}  Qg4 {[%clk 0:01:58]} 16. Rg3 {[%clk 0:01:28]}  Qxc4 {[%clk 0:01:55]} 17. Bxc4 {[%clk 0:01:29]}  Nh5 {[%clk 0:01:48]} 18. Rg4 {[%clk 0:01:24]}  Bf5 {[%clk 0:01:43]} 19. Nh2 {[%clk 0:01:17]}  Bxg4 {[%clk 0:01:42]} 20. Nxg4 {[%clk 0:01:18]}  f5 {[%clk 0:01:39]} 21. Nh2 {[%clk 0:01:18]}  Rae8 {[%clk 0:01:36]} 22. Bd3 {[%clk 0:01:16]}  Nf6 {[%clk 0:01:26]} 23. Nf3 {[%clk 0:01:14]}  Ne4 {[%clk 0:01:26]} 24. Bf4 {[%clk 0:01:14]}  Nxf2 {[%clk 0:01:23]} 25. Bb5 {[%clk 0:01:12]}  Re7 {[%clk 0:01:20]} 26. b4 {[%clk 0:01:12]}  Bb6 {[%clk 0:01:20]} 27. a4 {[%clk 0:01:10]}  Ng4 {[%clk 0:01:16]} 28. a5 {[%clk 0:01:06]}  Be3 {[%clk 0:01:17]} 29. Bg3 {[%clk 0:01:05]}  a6 {[%clk 0:01:03]} 30. Be2 {[%clk 0:00:59]}  Ba7 {[%clk 0:01:03]} 31. Bf4 {[%clk 0:00:55]}  Be3 {[%clk 0:00:57]} 32. Bg3 {[%clk 0:00:55]}  f4 {[%clk 0:00:56]} 33. Be1 {[%clk 0:00:55]}  Ba7 {[%clk 0:00:56]} 34. Bd2 {[%clk 0:00:55]}  Ne3+ {[%clk 0:00:51]} 35. Bxe3 {[%clk 0:00:55]}  Rxe3 {[%clk 0:00:52]} 36. Rb1 {[%clk 0:00:43]}  Rfe8 {[%clk 0:00:49]} 37. Bd3 {[%clk 0:00:43]}  R3e7 {[%clk 0:00:33]} 38. b5 {[%clk 0:00:43]}  axb5 {[%clk 0:00:34]} 39. Rxb5 {[%clk 0:00:43]}  c6 {[%clk 0:00:33]} 40. Rb4 {[%clk 0:00:40]}  Be3 {[%clk 0:00:31]} 41. dxc6 {[%clk 0:00:35]}  bxc6 {[%clk 0:00:31]} 42. a6 {[%clk 0:00:36]}  d5 {[%clk 0:00:27]} 43. Bg6 {[%clk 0:00:25]}  Ra8 {[%clk 0:00:26]} 44. Ra4 {[%clk 0:00:20]}  Rea7 {[%clk 0:00:23]} 45. Bd3 {[%clk 0:00:19]}  Rb8 {[%clk 0:00:24]} 46. Ne5 {[%clk 0:00:18]}  Rb6 {[%clk 0:00:16]} 47. Ke2 {[%clk 0:00:15]}  g5 {[%clk 0:00:15]} 48. hxg5 {[%clk 0:00:15]}  hxg5 {[%clk 0:00:16]} 49. Kf3 {[%clk 0:00:15]}  Kg7 {[%clk 0:00:16]} 50. Ra1 {[%clk 0:00:14]}  c5 {[%clk 0:00:14]} 51. c4 {[%clk 0:00:13]}  dxc4 {[%clk 0:00:14]} 52. Bxc4 {[%clk 0:00:13]}  Rb2 {[%clk 0:00:13]} 53. Rh1 {[%clk 0:00:12]}  Rf2+ {[%clk 0:00:13]} 54. Ke4 {[%clk 0:00:12]}  Rxg2 {[%clk 0:00:12]} 55. Kf5 {[%clk 0:00:13]}  f3 {[%clk 0:00:11]} 56. Nxf3 {[%clk 0:00:12]}  Rf2 {[%clk 0:00:12]} 57. Kg4 {[%clk 0:00:10]}  Kf6 {[%clk 0:00:10]} 58. Rh6+ {[%clk 0:00:10]}  Kg7 {[%clk 0:00:10]} 59. Rc6 {[%clk 0:00:10]}  Ra2 {[%clk 0:00:09]} 60. Ne5 {[%clk 0:00:10]}  Ra4 {[%clk 0:00:09]} 61. Kf5 {[%clk 0:00:10]}  Bf4 {[%clk 0:00:08]} 62. Rg6+ {[%clk 0:00:10]}  Kf8 {[%clk 0:00:08]} 63. Be6 {[%clk 0:00:10]}  R4xa6 {[%clk 0:00:07]} 64. Rg8+ {[%clk 0:00:09]}  Ke7 {[%clk 0:00:08]} 65. Rg7+ {[%clk 0:00:10]}  Kd6 {[%clk 0:00:09]} 66. Nc4+ {[%clk 0:00:09]}  Kc6 {[%clk 0:00:09]} 67. Rg6 {[%clk 0:00:10]}  Kb5 {[%clk 0:00:10]} 68. Nb2 {[%clk 0:00:10]}  Kb4 {[%clk 0:00:10]} 69. Nd3+ {[%clk 0:00:10]}  Kc3 {[%clk 0:00:10]} 70. Nxc5 {[%clk 0:00:11]}  Ra5 {[%clk 0:00:11]} 71. Ke4 {[%clk 0:00:08]}  Rxc5 {[%clk 0:00:11]} 72. Rg8 {[%clk 0:00:09]}  Ra4+ {[%clk 0:00:11]} 73. Kf3 {[%clk 0:00:09]}  Re5 {[%clk 0:00:10]} 74. Bd7 {[%clk 0:00:08]}  Rd4 {[%clk 0:00:10]} 75. Rc8+ {[%clk 0:00:08]}  Kd2 {[%clk 0:00:10]} 76. Bc6 {[%clk 0:00:06]}  Re3+ {[%clk 0:00:10]} 77. Kf2 {[%clk 0:00:07]}  Rdd3 {[%clk 0:00:06]} 78. Bg2 {[%clk 0:00:06]}  Rc3 {[%clk 0:00:05]} 79. Rd8+ {[%clk 0:00:06]}  Kc1 {[%clk 0:00:06]} 80. Ra8 {[%clk 0:00:07]}  Rc2+ {[%clk 0:00:06]} 81. Kf1 {[%clk 0:00:06]}  Rb3 {[%clk 0:00:06]} 82. Be4 {[%clk 0:00:06]}  Rd2 {[%clk 0:00:05]} 83. Rc8+ {[%clk 0:00:06]}  Kb2 {[%clk 0:00:06]} 84. Ke1 {[%clk 0:00:05]}  Rc3 {[%clk 0:00:05]} 85. Rb8+ {[%clk 0:00:05]}  Ka3 {[%clk 0:00:05]} 86. Ra8+ {[%clk 0:00:06]}  Kb4 {[%clk 0:00:05]} 87. Bf5 {[%clk 0:00:06]}  Rc1# {[%clk 0:00:05]} 0-1


[Site "https://www.chess.com"]